Cogmind - Beta 11.1 @@@ ROGUE MODE // 2022.12.21 @ 08:48:37 Player: ChromeKnight Result: Destroyed by S-27 Virus with Autogun Performance ------------- Evolutions (3) 1500 Regions Visited (12) 2400 Robots Destroyed (96) 480 Value Destroyed (3942) 3942 Prototype IDs (28) 560 Alien Tech Used (0) 0 Bonus (2581) 2581 TOTAL SCORE: 11463 Bonus ------- High Alert Combat Kills 295 Follower Combat Kills 423 Entered Garrisons 600 Used RIF Installer 1000 Aligned with FarCom 300 Friendly Fire -37 Cogmind --------- Core Integrity 0/700 Matter 300/300 Energy 99/100 System Corruption 2% Temperature Cool (0) Movement Core (50) Location -7/Garrison Parts ------- > --- POWER (1) -------- (None) > --- PROPULSION (2) --- (None) > --- UTILITY (8) ------ Improved Hacking Suite Relay Coupler [NC] (3) > --- WEAPON (2) ------- (None) > --- INVENTORY (5) ---- (None) Peak State ------------ > --- POWER ------------ Light Nuclear Core > --- PROPULSION ------- Improved Carbon-fiber Leg Improved Carbon-fiber Leg > --- UTILITY ---------- Lightpack 2.0 Relay Coupler [Grunt] Relay Coupler [Duelist] Relay Coupler [Sentry] > --- WEAPON ----------- Precision Assault Rifle Remote Datajack > --- INVENTORY -------- Improved Flight Unit Improved Flight Unit Surge Thruster Surge Thruster Improved VTOL Module Improved Heat Sink Melee Analysis Suite Melee Analysis Suite Weapon Cycler Weapon Cycler Improved Utility Shielding Improved Utility Shielding Light Armor Plating Hacking Suite System Shield Relay Coupler [NC] Relay Coupler [NC] Relay Coupler [NC] Relay Coupler [NC] Relay Coupler [Swarmer] Relay Coupler [Sentry] Relay Coupler [Demolisher] Relay Coupler [Specialist] Army-in-a-Box Arc Projector Arc Projector Arc Projector Arc Projector Precision Assault Rifle Precision Assault Rifle Datajack Remote Datajack Remote Datajack Remote Datajack [Rating: 76] Favorites ----------- Power Makeshift Power Source Engine Makeshift Power Source Power Core Light Nuclear Core Propulsion Improved Carbon-fiber Leg Treads Light Treads Leg Improved Carbon-fiber Leg Wheel Armored Huge Wheel Flight Unit Improved Flight Unit Utility Lightpack 2.0 Device Improved Heat Sink Storage Lightpack 2.0 Processor Advanced Targeting Computer Hackware Relay Coupler [Sentry] Protection Medium Reactive Plating Weapon Improved Assault Rifle Energy Gun Medium Laser Ballistic Gun Improved Assault Rifle Ballistic Cannon Bore Cannon Launcher Rocket Launcher Special Weapon Remote Datajack Slashing Weapon Blade Saw Special Melee Weapon Datajack Build | -11 -10 -10 -9 -9 -9 -8 -8 -8 -8 -8 -7 -7 ------- Run | Scr Mat Min Mat Min Exi Min Mat Gar Mat Gar Fac Gar Slots Evolved 6 | . . . 2 . . . 2 . . . 2 . Power . | . . . . . . . . . . . . . Propulsion . | . . . . . . . . . . . . . Utility 6 | . . . 2 . . . 2 . . . 2 . Weapon . | . . . . . . . . . . . . . Parts Attached 106 | 6 . 6 12 2 2 . 21 12 8 5 19 13 Power 8 | 1 . 1 . . . . 3 3 . . . . Engine 5 | 1 . 1 . . . . 2 1 . . . . Core 3 | . . . . . . . 1 2 . . . . Reactor . | . . . . . . . . . . . . . Propulsion 25 | 2 . 2 5 1 . . 1 2 . 4 4 4 Treads 2 | . . . 2 . . . . . . . . . Leg 13 | 2 . 2 3 . . . . 2 . 4 . . Wheel 2 | . . . . 1 . . 1 . . . . . Hover . | . . . . . . . . . . . . . Flight 8 | . . . . . . . . . . . 4 4 Utility 36 | 1 . 1 6 . 2 . 10 4 5 1 6 . Device 5 | . . 1 3 . 1 . . . . . . . Storage 4 | 1 . . 2 . 1 . . . . . . . Processor 2 | . . . . . . . 2 . . . . . Hackware 12 | . . . . . . . . . 5 1 6 . Protection 13 | . . . 1 . . . 8 4 . . . . Artifact . | . . . . . . . . . . . . . Weapon 37 | 2 . 2 1 1 . . 7 3 3 . 9 9 Energy Gun 10 | 2 . 2 . 1 . . . . . . 1 4 Energy Cannon . | . . . . . . . . . . . . . Ballistic Gun 16 | . . . . . . . 6 3 2 . 4 1 Ballistic Cannon 1 | . . . 1 . . . . . . . . . Launcher 1 | . . . . . . . 1 . . . . . Special Weapon 6 | . . . . . . . . . 1 . 4 1 Impact Weapon . | . . . . . . . . . . . . . Slashing Weapon 2 | . . . . . . . . . . . . 2 Piercing Weapon . | . . . . . . . . . . . . . Special Melee Weapon 1 | . . . . . . . . . . . . 1 Unidentified Prototypes 5 | . . . . . . . 2 . 1 . 2 . Corrupted Parts 2 | . . . . 2 . . . . . . . . System Corruption 8 | . . . . 8 . . . . . . . . Parts Lost 55 | . . 2 . 1 . . 7 5 . 2 . 38 Power 2 | . . 1 . . . . 1 . . . . . Propulsion 10 | . . . . . . . . 1 . 2 . 7 Utility 25 | . . . . 1 . . 1 2 . . . 21 Weapon 18 | . . 1 . . . . 5 2 . . . 10 Highest Loss Streak 36 | . . 2 . 1 . . 5 3 . 2 . 36 To Critical Strikes . | . . . . . . . . . . . . . Average Slot Usage (%) 75 | . 85 85 99 89 70 66 70 72 78 75 66 50 Engine 6 | . 14 13 11 11 11 11 8 1 . . 2 . Core 2 | . . . . . . . . 6 9 9 . . Treads 1 | . . . 8 19 . . . . . . . . Leg 9 | . 28 28 13 . . . . 12 18 17 . . Wheel 2 | . . . . 1 11 11 8 2 . . . . Flight 1 | . . . . . . . . . . . 14 10 Device 4 | . . 1 22 22 15 11 2 . . . . . Storage 9 | . 14 14 11 11 11 11 9 9 9 9 7 4 Processor 3 | . . . . . . . 8 9 2 . . . Hackware 7 | . . . . . . . . . 18 21 31 26 Protection 6 | . . . 10 2 . . 14 14 3 . . . Energy Gun 6 | . 28 27 11 11 11 11 1 . . . . 2 Ballistic Gun 7 | . . . . . . . 15 17 10 9 . . Ballistic Cannon 2 | . . . 10 11 11 11 . . . . . . Special Weapon 1 | . . . . . . . . . 7 9 6 2 Naked Turns . | . . . . . . . . . . . . . Heaviest Build 61 | 14 14 17 47 47 39 23 56 61 38 17 17 10 Greatest Support 40 | 20 20 30 40 40 28 28 28 36 36 36 25 8 Greatest Overweight (x) 9 | 1 . . 2 1 1 . 1 9 1 5 1 1 Average Overweight (x) . | . . . . . . . . . . . . . Largest Inventory Capacity 40 | 8 8 8 15 15 40 40 40 40 40 40 40 40 Average Capacity 30 | 6 8 8 10 15 26 40 40 40 40 40 40 27 Most Carried 40 | 1 6 8 9 15 18 18 37 33 37 40 40 40 Average Carried 23 | . 1 7 7 12 14 18 29 28 34 38 32 24 Final Capacity 40 | 8 8 8 15 15 40 40 40 40 40 40 40 5 Final Carried 40 | 1 6 7 9 11 18 18 31 32 37 40 40 . Class Distribution -------------------- 39% | Hauler-Mutant 28% | Bothacker-Mutant 17% | Mutant 13% | Scavenger-Mutant Dominant Class ---------------- Mutant | -10/Materials Mutant | -10/Mines Scavenger-Mutant | -9/Materials Scavenger-Mutant | -9/Mines Mutant | -9/Exiles Hauler-Mutant | -8/Mines Hauler-Mutant | -8/Materials Hauler-Mutant | -8/Garrison Bothacker-Mutant | -8/Materials Bothacker-Mutant | -8/Garrison Bothacker-Mutant | -7/Factory Bothacker-Mutant | -7/Garrison Resources | -11 -10 -10 -9 -9 -9 -8 -8 -8 -8 -8 -7 -7 ----------- Run | Scr Mat Min Mat Min Exi Min Mat Gar Mat Gar Fac Gar Matter Collected 2968 | 148 98 69 266 86 . 21 805 654 170 212 289 150 Remotely . | . . . . . . . . . . . . . Salvage Created 3423 | . 98 262 441 153 . . 1264 723 20 202 73 187 Parts 214 | . 5 8 25 16 . . 91 45 1 5 8 10 Haulers Intercepted 2 | . . . 1 . . . 1 . . . . . Recyclers Shooed 1 | . . . . . . . 1 . . . . . Parts Field Recycled . | . . . . . . . . . . . . . Retrieved Matter . | . . . . . . . . . . . . . Parts Self-Destructed . | . . . . . . . . . . . . . Prevented . | . . . . . . . . . . . . . Kills | -11 -10 -10 -9 -9 -9 -8 -8 -8 -8 -8 -7 -7 ------- Run | Scr Mat Min Mat Min Exi Min Mat Gar Mat Gar Fac Gar Combat Hostiles Destroyed 79 | . 2 7 4 4 . . 29 18 1 4 3 7 Melee 3 | . . . . . . . . . . . . 3 Guns 68 | . 2 6 3 3 . . 24 18 1 4 3 4 Cannons 3 | . . . 1 1 . . 1 . . . . . AOE 4 | . . . . . . . 4 . . . . . Classes Destroyed 17 | . 2 3 5 1 . . 3 2 . . . 1 Worker 2 | . . . 1 . . . 1 . . . . . Builder 3 | . . . . 1 . . 2 . . . . . Tunneler 1 | . . 1 . . . . . . . . . . Hauler 2 | . . . 1 . . . 1 . . . . . Recycler 4 | . . . 2 1 . . 1 . . . . . Operator 2 | . 1 . . . . . 1 . . . . . Watcher 3 | . . . 2 . . . 1 . . . . . Swarmer 25 | . . 1 . 4 . . 9 4 1 . . 6 Cutter 4 | . . . . . . . . 2 . . 2 . Grunt 31 | . 2 5 3 . . . 9 7 . 4 1 . Brawler 1 | . . . . . . . . 1 . . . . Sentry 11 | . . . 1 . . . 7 3 . . . . Demolisher 1 | . . 1 . . . . . . . . . . Specialist 3 | . . . . . . . 2 1 . . . . Hunter 1 | . . . . . . . 1 . . . . . Programmer 1 | . . . . . . . . . . . . 1 Heavy 1 | . . . . . . . 1 . . . . . Best Kill Streak 6 | . 1 3 6 5 . . 6 5 1 2 2 2 Combat Bots Only 5 | . 1 3 1 3 . . 5 5 1 2 2 2 Max Kills in Single Turn 2 | . 1 1 1 1 . . 2 1 1 1 1 1 Gunslinging . | . . . . . . . . . . . . . Exploded 2 | . . . . . . . 2 . . . . . Melee 1 | . . . . . . . . . . . . 1 Uniques/NPCs Destroyed . | . . . . . . . . . . . . . Combat | -11 -10 -10 -9 -9 -9 -8 -8 -8 -8 -8 -7 -7 -------- Run | Scr Mat Min Mat Min Exi Min Mat Gar Mat Gar Fac Gar Damage Taken 6303 | . 111 420 358 203 . . 2080 1139 86 397 159 1350 Core 1448 | . 46 69 76 6 . . 132 278 30 101 24 686 Absorbed by Shields 9 | . . . . . . . . . . . . 9 Redirected to Shielding 71 | . . . . . . . 71 . . . . . Regen/Repaired (Parts) 113 | . . . . . . . 113 . . . . . Core Remaining (%) 58 | 100 . 54 . . . 79 . . . 1 . . Volleys Fired 380 | . 13 25 24 10 . . 113 70 16 35 23 51 Largest 2 | . 2 2 2 2 . . 2 2 1 1 1 1 Hottest 132 | . 100 115 132 132 . . 112 48 28 28 55 55 Shots Fired 607 | . 26 49 48 21 . . 216 121 16 36 23 51 Gun 524 | . 26 49 24 11 . . 199 121 2 33 10 49 Cannon 43 | . . . 24 10 . . 9 . . . . . Launcher 8 | . . . . . . . 8 . . . . . Special 32 | . . . . . . . . . 14 3 13 2 Kinetic 401 | . . . 24 10 . . 196 121 2 33 8 7 Thermal 138 | . 26 41 24 11 . . . . . . . 36 Explosive 8 | . . . . . . . 8 . . . . . Electromagnetic 28 | . . 8 . . . . 12 . . . 2 6 Robot Hit Streak 31 | . 4 7 4 2 . . 31 28 17 21 31 9 Robot Miss Streak 5 | . 5 3 5 3 . . 3 2 3 1 2 2 Penetration Max 1 | . . . 1 . . . 1 . . . . . Secondary Targets 9 | . . . . . . . 5 4 . . . . Max Gunslinging Chain 1 | . . . . . . . 1 1 . . . . Shots Hit Robots 434 | . 13 35 21 7 . . 166 94 11 29 20 38 Core Hits 163 | . 6 14 11 6 . . 67 33 1 6 4 15 Critical Kills 6 | . . . 2 1 . . 1 2 . . . . Critical Parts Destroyed 6 | . . . 2 1 . . 2 . . 1 . . Critical Strikes 19 | . 3 2 4 3 . . 3 2 . 1 . 1 Burn 6 | . 3 2 . 1 . . . . . . . . Destroy 12 | . . . 4 2 . . 3 2 . 1 . . Sever 1 | . . . . . . . . . . . . 1 Melee Attacks 21 | . . . . . . . . . . . . 21 Impact . | . . . . . . . . . . . . . Slashing 20 | . . . . . . . . . . . . 20 Piercing . | . . . . . . . . . . . . . Sneak Attacks 1 | . . . . . . . . . . . . 1 Combat Hostiles . | . . . . . . . . . . . . . Follow-up Attacks . | . . . . . . . . . . . . . Damage Inflicted 7124 | . 173 459 494 180 . . 3070 1478 40 484 160 586 Guns 5987 | . 173 459 272 131 . . 2357 1478 40 484 160 433 Cannons 362 | . . . 222 49 . . 91 . . . . . Explosions 586 | . . . . . . . 586 . . . . . Melee 148 | . . . . . . . . . . . . 148 Ramming 41 | . . . . . . . 36 . . . . 5 Kinetic 4952 | . . . 222 49 . . 2370 1478 40 484 160 149 Thermal 1307 | . 173 384 272 131 . . 83 . . . . 264 Explosive 503 | . . . . . . . 503 . . . . . Electromagnetic 173 | . . 75 . . . . 78 . . . . 20 Impact . | . . . . . . . . . . . . . Slashing 148 | . . . . . . . . . . . . 148 Piercing . | . . . . . . . . . . . . . Highest Corruption 9 | . . . 1 9 9 9 . . 2 2 . 2 Average Corruption 3 | . . . 1 1 9 9 . . 2 2 . 1 Corruption Purged . | . . . . . . . . . . . . . Corruption Blocked 8 | . . . . . . . . . . . 8 . Effects 47 | . . . 2 10 8 9 . . 3 11 . 4 Message Errors 14 | . . . 2 3 2 2 . . . 3 . 2 Matter Fused 12 | . . . . 2 2 3 . . . 5 . . Heat Flow Errors 6 | . . . . 2 2 1 . . 1 . . . Energy Discharges 7 | . . . . 2 . 1 . . 1 2 . 1 Data Loss (minor) 3 | . . . . . 1 . . . 1 . . 1 Data Loss (major) 3 | . . . . . 1 2 . . . . . . Misfires 2 | . . . . 1 . . . . . 1 . . Overload Shots . | . . . . . . . . . . . . . Overflow Damage 37 | . . . 2 . . . 35 . . . . . Projectiles 2 | . . . 2 . . . . . . . . . Explosions 35 | . . . . . . . 35 . . . . . Melee . | . . . . . . . . . . . . . Knockbacks . | . . . . . . . . . . . . . Impact . | . . . . . . . . . . . . . Kinetic . | . . . . . . . . . . . . . Secondary . | . . . . . . . . . . . . . Self-Inflicted Damage 173 | . . . . . . . 171 . . . . 2 Shots 6 | . . . . . . . 6 . . . . . Rammed 5 | . . . . . . . 2 . . . . 3 Targets Rammed 7 | . 1 . 1 . . . 2 . . . . 3 Kicked 2 | . 1 . 1 . . . . . . . . . Crushed . | . . . . . . . . . . . . . Highest Temperature 399 | . 186 399 180 135 84 247 207 146 183 17 9 . Average Temperature 75 | . 73 151 55 40 60 135 72 35 94 10 9 . Received Heat Transfer 1855 | . 60 165 132 . . . 675 504 36 153 45 85 Siege Activations . | . . . . . . . . . . . . . Robots Corrupted . | . . . . . . . . . . . . . Combat Hostiles . | . . . . . . . . . . . . . Parts Fried 1 | . . . . . . . 1 . . . . . Impact Corruptions . | . . . . . . . . . . . . . Robots Melted 1 | . . 1 . . . . . . . . . . Combat Hostiles 1 | . . 1 . . . . . . . . . . Parts Melted 9 | . 3 2 1 . . . . . . . . 3 Heat Transferred 3615 | . 740 1258 481 296 . . 100 . . . . 740 Parts Sabotaged . | . . . . . . . . . . . . . Parts Stolen . | . . . . . . . . . . . . . Parts Stripped . | . . . . . . . . . . . . . Power Chain Reactions 1 | . . . . . . . 1 . . . . . Missiles Intercepted . | . . . . . . . . . . . . . Alert | -11 -10 -10 -9 -9 -9 -8 -8 -8 -8 -8 -7 -7 ------- Run | Scr Mat Min Mat Min Exi Min Mat Gar Mat Gar Fac Gar Peak Influence 1059 | . 98 195 211 157 . . 469 1059 554 458 319 295 Initial 516 | . . 37 29 28 . . . 304 516 263 240 155 Average 293 | . 51 62 78 124 . . 255 754 472 392 216 163 Maximum Alert Level 3 | . . . 1 . . . 2 3 2 2 1 1 Low Security (%) 44 | 100 100 100 98 100 . 100 22 . . . 39 73 Level 1 27 | . . . 1 . . . 67 2 23 39 60 26 Level 2 17 | . . . . . . . 10 34 76 60 . . Level 3 10 | . . . . . . . . 62 . . . . Level 4 . | . . . . . . . . . . . . . Level 5 . | . . . . . . . . . . . . . High Security . | . . . . . . . . . . . . . Max Security . | . . . . . . . . . . . . . Squads Dispatched 13 | . 1 . . . . . 5 . 1 . 6 . Investigation 4 | . . . . . . . 2 . 1 . 1 . Extermination 1 | . . . . . . . . . . . 1 . Reinforcement 6 | . 1 . . . . . 3 . . . 2 . Assault . | . . . . . . . . . . . . . Garrison 2 | . . . . . . . . . . . 2 . Intercept . | . . . . . . . . . . . . . Searches Triggered . | . . . . . . . . . . . . . Construction Impeded . | . . . . . . . . . . . . . Haulers Reinforced . | . . . . . . . . . . . . . Active Scanning Responses . | . . . . . . . . . . . . . Cargo Convoy Interrupts 1 | . . . . . . . . . . . 1 . Stealth | -11 -10 -10 -9 -9 -9 -8 -8 -8 -8 -8 -7 -7 --------- Run | Scr Mat Min Mat Min Exi Min Mat Gar Mat Gar Fac Gar Distress Signals 6 | . . . 1 . . . 3 . 2 . . . Communications Jammed . | . . . . . . . . . . . . . Distress Signals . | . . . . . . . . . . . . . Times Spotted 140 | . 7 9 8 5 . . 44 18 13 9 11 16 Peak Tracking Total 9 | . 2 4 2 4 . . 9 7 6 3 3 5 Tactical Retreats 11 | . 1 1 1 1 . . 2 1 1 . . 3 Traps | -11 -10 -10 -9 -9 -9 -8 -8 -8 -8 -8 -7 -7 ------- Run | Scr Mat Min Mat Min Exi Min Mat Gar Mat Gar Fac Gar Traps Triggered 13 | . . . 1 1 . . 2 7 2 . . . Indirectly . | . . . . . . . . . . . . . Trap Hack Attempts . | . . . . . . . . . . . . . Triggered . | . . . . . . . . . . . . . Disarmed . | . . . . . . . . . . . . . Reprogrammed . | . . . . . . . . . . . . . Reused . | . . . . . . . . . . . . . Traps Extracted . | . . . . . . . . . . . . . Installed . | . . . . . . . . . . . . . Triggered 2 | . . . . . . . . . . . 2 . Exploded 1 | . . . . . 1 . . . . . . . Machines | -11 -10 -10 -9 -9 -9 -8 -8 -8 -8 -8 -7 -7 ---------- Run | Scr Mat Min Mat Min Exi Min Mat Gar Mat Gar Fac Gar Machines Disabled 10 | . . . 2 . . . 2 3 1 1 . 1 Max in Single Turn 1 | . . . 1 . . . 1 1 . 1 . 1 Garrison Relay 5 | . . . . . . . . 3 . 1 . 1 Machines Sabotaged . | . . . . . . . . . . . . . Garrisons Compromised 1 | . . . . . . . . . . . 1 . Overloaded Fab Kills . | . . . . . . . . . . . . . Hacking | -11 -10 -10 -9 -9 -9 -8 -8 -8 -8 -8 -7 -7 --------- Run | Scr Mat Min Mat Min Exi Min Mat Gar Mat Gar Fac Gar Machines Accessed 21 | . 2 . 4 1 1 . 6 . 2 . 5 . Terminals 15 | . 2 . 4 . . . 4 . 1 . 4 . Fabricators . | . . . . . . . . . . . . . Repair Stations 1 | . . . . . . . 1 . . . . . Recycling Units . | . . . . . . . . . . . . . Scanalyzers . | . . . . . . . . . . . . . Garrison Access 3 | . . . . . . . 1 . 1 . 1 . Total Hacks 51 | . 8 . 11 1 1 . 11 . 6 . 13 . Successful 29 | . 6 . 5 1 1 . 5 . 4 . 7 . Failed 22 | . 2 . 6 . . . 6 . 2 . 6 . Catastrophic 1 | . . . . . . . . . . . 1 . Database Lockouts . | . . . . . . . . . . . . . Manual 38 | . 5 . 10 . 1 . 7 . 5 . 10 . Terminals 39 | . 8 . 11 . . . 7 . 2 . 11 . Fabricators . | . . . . . . . . . . . . . Repair Stations 3 | . . . . . . . 3 . . . . . Recycling Units . | . . . . . . . . . . . . . Scanalyzers . | . . . . . . . . . . . . . Garrison Access 7 | . . . . . . . 1 . 4 . 2 . Terminal Hacks 6 | . 1 . 1 1 1 . . . . . 2 . Robot Schematic 1 | . . . . . . . . . . . 1 . Open Door 1 | . . . . 1 . . . . . . . . Hauler Manifests 1 | . . . . . . . . . . . 1 . Zone Layout 2 | . 1 . 1 . . . . . . . . . EX-Prototype ID Bank 1 | . . . . . 1 . . . . . . . Fabricator Hacks . | . . . . . . . . . . . . . Repair Station Hacks 2 | . . . . . . . 2 . . . . . Scan Component 1 | . . . . . . . 1 . . . . . Repair 1 | . . . . . . . 1 . . . . . Recycling Unit Hacks . | . . . . . . . . . . . . . Scanalyzer . | . . . . . . . . . . . . . Garrison Access Hacks 3 | . . . . . . . 1 . 1 . 1 . Unlock Access 3 | . . . . . . . 1 . 1 . 1 . Unauthorized Hacks 18 | . 5 . 4 . . . 2 . 3 . 4 . Terminals 17 | . 5 . 4 . . . 2 . 2 . 4 . Track 4 | . 2 . . . . . 1 . 1 . . . Assimilate 1 | . . . . . . . . . . . 1 . Botnet 9 | . 2 . 3 . . . 1 . 1 . 2 . Operators 3 | . 1 . 1 . . . . . . . 1 . Fabricators . | . . . . . . . . . . . . . Repair Stations . | . . . . . . . . . . . . . Recycling Units . | . . . . . . . . . . . . . Scanalyzers . | . . . . . . . . . . . . . Garrison Access 1 | . . . . . . . . . 1 . . . Reprogram 1 | . . . . . . . . . 1 . . . Data Cores Recovered . | . . . . . . . . . . . . . Used . | . . . . . . . . . . . . . Hacking Detections 17 | . 2 . 3 . . . 5 . 2 . 5 . Full Trace Events 2 | . . . . . . . 1 . . . 1 . Feedback Events . | . . . . . . . . . . . . . Feedback Blocked . | . . . . . . . . . . . . . Robot Schematics Acquired 1 | . . . . . . . . . . . 1 . Robots Built . | . . . . . . . . . . . . . Authchips . | . . . . . . . . . . . . . Time . | . . . . . . . . . . . . . Total Robot Build Rating . | . . . . . . . . . . . . . Part Schematics Acquired . | . . . . . . . . . . . . . Parts Built . | . . . . . . . . . . . . . Authchips . | . . . . . . . . . . . . . Time . | . . . . . . . . . . . . . Total Part Build Rating . | . . . . . . . . . . . . . Parts Repaired 1 | . . . . . . . 1 . . . . . Time 44 | . . . . . . . 44 . . . . . Parts Recycled . | . . . . . . . . . . . . . Recycled Matter . | . . . . . . . . . . . . . Retrieved Matter . | . . . . . . . . . . . . . Retrieved Components . | . . . . . . . . . . . . . Parts Scanalyzed . | . . . . . . . . . . . . . Part Schematics Acquired . | . . . . . . . . . . . . . Parts Damaged . | . . . . . . . . . . . . . Bothacking | -11 -10 -10 -9 -9 -9 -8 -8 -8 -8 -8 -7 -7 ------------ Run | Scr Mat Min Mat Min Exi Min Mat Gar Mat Gar Fac Gar Used RIF Installer 2 | . . . . . . . . 1 . 1 . . Structural Interface 1 | . . . . . . . . . . 1 . . Robots Hacked 19 | . . . . . . . . . 7 3 8 1 Non-combat 7 | . . . . . . . . . 1 . 5 1 Combat 12 | . . . . . . . . . 6 3 3 . Robot Hacks Applied 21 | . . . . . . . . . 8 3 9 1 parse_system 2 | . . . . . . . . . 1 . 1 . mark_system 1 | . . . . . . . . . 1 . . . spike_heat 1 | . . . . . . . . . . 1 . . overload_power 1 | . . . . . . . . . . . 1 . disable_weapons 1 | . . . . . . . . . . 1 . . reboot_system 1 | . . . . . . . . . . 1 . . overwrite_iff 2 | . . . . . . . . . 2 . . . formatsys_low 6 | . . . . . . . . . . . 5 1 formatsys_high 6 | . . . . . . . . . 4 . 2 . Relay Couplers Released 21 | . . . . . . . . 12 . 5 . 4 Machine Destruction 21 | . . . . . . . . 12 . 5 . 4 Attached 9 | . . . . . . . . . 5 1 3 . Fabnet Peak Effective % . | . . . . . . . . . . . . . Robots Rewired . | . . . . . . . . . . . . . Allies Hacked 1 | . . . . . . . . . . . . 1 Hacks Repelled 1 | . . . . . . . . . . . . 1 Allies | -11 -10 -10 -9 -9 -9 -8 -8 -8 -8 -8 -7 -7 -------- Run | Scr Mat Min Mat Min Exi Min Mat Gar Mat Gar Fac Gar Total Allies 15 | . . 2 . . . . . . 6 . 7 . Largest Group 6 | . . 2 . . . . . . 4 4 6 3 Highest-Rated Group 146 | . . 45 . . . . . . 57 56 146 68 Highest-Rated Ally 32 | . . 31 . . . . . . 16 16 32 32 Total Orders 29 | . . . . . . . . . 4 5 17 3 STAY 16 | . . . . . . . . . 2 3 9 2 FOLLOW 9 | . . . . . . . . . 2 2 5 . AID 4 | . . . . . . . . . . . 3 1 Ally Attacks 99 | . . 18 . . . . . . 11 51 17 2 Total Damage 1886 | . . 252 . . . . . . 145 761 614 114 Kills 16 | . . 2 . . . . . . 1 5 8 . Allies Corrupted . | . . . . . . . . . . . . . Allies Melted 1 | . . . . . . . . . 1 . . . Intel | -11 -10 -10 -9 -9 -9 -8 -8 -8 -8 -8 -7 -7 ------- Run | Scr Mat Min Mat Min Exi Min Mat Gar Mat Gar Fac Gar Robot Analysis Total . | . . . . . . . . . . . . . Derelict Logs Recovered 1 | . . 1 . . . . . . . . . . Drone Launches . | . . . . . . . . . . . . . Drone Recoveries . | . . . . . . . . . . . . . Exploration | -11 -10 -10 -9 -9 -9 -8 -8 -8 -8 -8 -7 -7 ------------- Run | Scr Mat Min Mat Min Exi Min Mat Gar Mat Gar Fac Gar Turns Passed 9070 | 57 320 981 783 381 248 368 1819 1464 634 662 947 406 Spaces Moved 5363 | 45 162 334 298 206 225 335 1017 696 353 333 1120 239 Core 78 | 14 . . . . . . . 11 . 1 . 52 Treads 324 | . . . 149 175 . . . . . . . . Legs 1917 | 31 162 334 149 . . . . 537 353 332 19 . Wheels 1756 | . . . . 31 225 335 1017 148 . . . . Hover . | . . . . . . . . . . . . . Flight 1288 | . . . . . . . . . . . 1101 187 Fastest Speed 32 | 50 120 120 130 115 100 100 100 115 120 120 32 32 Average Speed 106 | 104 120 126 212 162 107 100 107 152 131 121 35 39 Slowest Speed 500 | 120 120 130 320 240 115 100 115 500 190 300 120 89 Overloaded Moves . | . . . . . . . . . . . . . Propulsion Burnouts . | . . . . . . . . . . . . . Robots Hopped 13 | . . . . . . . . . . . 12 1 Cave-ins Triggered . | . . . . . . . . . . . . . Exploration Rate (%) 46 | 4 29 61 29 48 62 68 87 72 26 51 19 49 Regions Visited 12 Branch Regions 4 Pre-discovered Areas . | . . . . . . . . . . . . . Known Exits Taken 3 | . . . . . . . 1 . 1 . 1 . Unknown Exits Taken 7 | 1 1 1 1 1 1 1 . . . . . . Scrap Searched 1 | . . . . . . 1 . . . . . . Spaces Dug . | . . . . . . . . . . . . . Terrain Destroyed 58 | . . . 10 9 . . 39 . . . . . Melee . | . . . . . . . . . . . . . Projectile 22 | . . . 10 9 . . 3 . . . . . AOE 36 | . . . . . . . 36 . . . . . Terrain Rammed . | . . . . . . . . . . . . . Walls Destroyed . | . . . . . . . . . . . . . Machines Disabled . | . . . . . . . . . . . . . Actions | -11 -10 -10 -9 -9 -9 -8 -8 -8 -8 -8 -7 -7 --------- Run | Scr Mat Min Mat Min Exi Min Mat Gar Mat Gar Fac Gar Total 8098 | 52 261 844 399 235 231 368 1530 1000 517 560 1641 460 Wait 2040 | 1 81 473 58 3 . 34 346 161 121 177 464 121 Move 5324 | 44 161 333 297 205 224 334 1016 694 352 331 1096 237 Hop 12 | . . . . . . . . . . . 11 1 Pick Up 95 | 1 5 3 1 7 2 . 25 16 12 7 11 5 Fast Attach 41 | 6 . 2 5 2 2 . 10 8 2 3 1 . Attach 37 | . . 1 1 . . . 8 2 6 . 11 8 Detach 7 | . . . . . . . . . 2 . 3 2 Swap 28 | . . 3 6 . . . 3 2 . 2 7 5 Drop 67 | . . 4 6 8 3 . 7 9 6 5 14 5 Fire 380 | . 13 25 24 10 . . 113 70 16 35 23 51 Melee 21 | . . . . . . . . . . . . 21 Ram 5 | . . . . . . . 2 . . . . 3 Kick 2 | . 1 . 1 . . . . . . . . . Crush . | . . . . . . . . . . . . . Escape Stasis 38 | . . . . . . . . 38 . . . . Rewire 1 | . . . . . . . . . . . . 1 Trap . | . . . . . . . . . . . . . Miscellaneous . | . . . . . . . . . . . . . Route ------- -11/Scrapyard -10/Materials -10/Mines (discovered 2 exits: *Mat x2) -9/Materials (discovered 2 exits: *Mat / *Min) -9/Mines -9/Exiles -8/Mines -8/Materials (discovered 4 exits: *Fac x3 / Gar) -8/Garrison (discovered 3 exits: *Mat x3) -8/Materials -8/Garrison -7/Factory (discovered 3 exits: [*Fac x2] / Gar) -7/Garrison (discovered 1 exit: [*Fac]) History --------- Turn | Location | Event 12 | -11/Scrapyard | Discovered new exit (range 15) 58 | -11/Scrapyard | Entered Materials 306 | -10/Materials | Build established: Mutant 326 | -10/Materials | Discovered new exit (range 15) 378 | -10/Materials | Entered Mines 586 | -10/Mines | Learned Materials stockpile data 756 | -10/Mines | Discovered new exit (range 15) 761 | -10/Mines | Assembled infested the area 1313 | -10/Mines | A weapon hastily lodged in a ceiling crevice suddenly fell to the ground 1337 | -10/Mines | Discovered new exit (range 11) 1359 | -10/Mines | Entered Materials 1359 | -9/Materials | Evolved 2 slots: Utility x2 1596 | -9/Materials | Build established: Scavenger-Mutant 1785 | -9/Materials | Discovered new exit (range 5) 1838 | -9/Materials | Discovered new exit (range 13) 2142 | -9/Materials | Entered Mines 2188 | -9/Mines | Received a Rocket Launcher from a helpful Derelict 2388 | -9/Mines | Deemed a non-threat by the Exiles lab entrance 2388 | -9/Mines | Discovered new exit (range 5) 2459 | -9/Mines | Met a Derelict who couldn't figure out how to use a Trap Extractor 2523 | -9/Mines | Entered Exiles 2552 | -9/Exiles | Met 8R-AWN 2571 | -9/Exiles | Met EX-HEX 2602 | -9/Exiles | Met EX-BIN 2618 | -9/Exiles | Aligned with FarCom system 2619 | -9/Exiles | Given EX-Vault access code 2647 | -9/Exiles | Opened EX-Vault 2657 | -9/Exiles | Found Lightpack 2.0 2661 | -9/Exiles | Found Chronowheel 2665 | -9/Exiles | Found Army-in-a-Box 2691 | -9/Exiles | Warned to stay clear of 0b10 Research branches 2695 | -9/Exiles | Exiles lab attacked by MAIN.C 2763 | -9/Exiles | Discovered new exit (range 10) 2771 | -9/Exiles | Stole three prototypes: Lightpack 2.0, Chronowheel, Army-in-a-Box 2771 | -9/Exiles | Entered Mines 2958 | -8/Mines | Build established: Hauler-Mutant 3120 | -8/Mines | Discovered new exit (range 5) 3139 | -8/Mines | Entered Materials 3139 | -8/Materials | Evolved 2 slots: Utility x2 3463 | -8/Materials | Discovered new exit (range 16) 3799 | -8/Materials | Discovered new exit (range 3) 3893 | -8/Materials | Repaired Arm. Huge Wheel 4804 | -8/Materials | Lost 5 parts (1p1u3w) 4822 | -8/Materials | Discovered new exit (range 11) 4957 | -8/Materials | Identified exit to Garrison 4958 | -8/Materials | Entered Garrison 5000 | -8/Garrison | Triggered checkpoint 5066 | -8/Garrison | Discovered new exit (range 10) 5334 | -8/Garrison | Triggered checkpoint 5368 | -8/Garrison | Core integrity fell below 50% 5411 | -8/Garrison | Lost 3 parts (1n1u1w) 5492 | -8/Garrison | Triggered checkpoint 5510 | -8/Garrison | Discovered new exit (range 15) 5576 | -8/Garrison | Triggered checkpoint 5662 | -8/Garrison | Discovered new exit (range 10) 5683 | -8/Garrison | Installed Relay Interface Framework 5728 | -8/Garrison | Triggered checkpoint 5764 | -8/Garrison | Garrison Relay disabled 5988 | -8/Garrison | Triggered checkpoint 6022 | -8/Garrison | Garrison Relay disabled 6220 | -8/Garrison | Triggered checkpoint 6265 | -8/Garrison | Garrison Relay disabled 6422 | -8/Garrison | Entered Materials 6561 | -8/Materials | Build established: Bothacker-Mutant 6882 | -8/Materials | Identified exit to Garrison 7056 | -8/Materials | Entered Garrison 7056 | -8/Garrison | Accompanied by 4 allies 7149 | -8/Garrison | Core integrity fell below 20% 7162 | -8/Garrison | Triggered checkpoint 7256 | -8/Garrison | Garrison Relay disabled 7464 | -8/Garrison | Triggered checkpoint 7603 | -8/Garrison | Discovered new exit (range 10) 7625 | -8/Garrison | Expanded RIF knowledge: Structural Interface 7718 | -8/Garrison | Entered Factory 7718 | -7/Factory | Evolved 2 slots: Utility x2 7720 | -7/Factory | FarCom data flow suspended 7784 | -7/Factory | Identified exit to Garrison 8030 | -7/Factory | Discovered new exit (range 10) 8058 | -7/Factory | Discovered new exit (range 7) 8312 | -7/Factory | Garrison activated, responded to threat 8464 | -7/Factory | Cargo convoy interrupted 8559 | -7/Factory | P-60 Hacker assimilated allied Smith 4a 8665 | -7/Factory | Entered Garrison 8665 | -7/Garrison | Accompanied by 3 allies 8710 | -7/Garrison | P-60 Hacker assimilated allied Administrator 4a 8822 | -7/Garrison | Garrison Relay disabled 8841 | -7/Garrison | Triggered checkpoint 8960 | -7/Garrison | Lost 36 parts (6n21u9w) 8993 | -7/Garrison | Core integrity fell below 50% 9044 | -7/Garrison | Core integrity fell below 20% 9069 | -7/Garrison | Discovered new exit (range 10) 9071 | -7/Garrison | Destroyed by S-27 Virus with Autogun Last Messages --------------- 08975_ RIF reveals location of phase wall. 08979_ Administrator 4b reveals location of Stasis Trap. Garrison Door activated. 08990_ S-27 Virus destroyed. 08992_ Acquired 11 matter. 09002_ Imp. Flight Unit destroyed. 09019_ VTOL Module melted. 09019_ S-27 Virus destroyed. 09031_ Slammed into G-47 Trooper. 09043_ G-47 Trooper heat spikes uncontrollably. 09043_ Slammed into H-55 Commando. 09043_ Destabilizing: System corrupted (+1). 09043_ Penetrated by Slug. 09044_ G-47 Trooper overheating. 09045_ Backup Laser III destroyed. 09046_ Slammed into G-47 Trooper. 09046_ G-47 Trooper overheating. 09046_ Slug penetrates Wall. 09049_ RIF reveals location of phase wall. 09069_ EXIT=FOUND Map ----- +----------------------------------------------------+ | ????????????????????????# ###????????#%#??# | | ????????????????????????# #"#????????#%#### | | ????????????????????????#=="#????????#=%*%+ | | ????????????????????????# ==#????????###### | | ????????????????????????#/["#?????????????# | | ????????????????????????###"#???????????### | | ??????????????????????????###???????????# | | ????????????????????????????????????????# | | ????????????????????????????????????????# | | ????????????????????????????????????????# | | ????????????????????????????????????????### | | ????????????????????????????????#####?????# | | ???????????????????????????????? ?????+ | | ????????????????????????????????? ?????+ | | ?????????????????????????????????# #?????# | | ?????????????????????????????????# #?????# | | ?????????????????????????????????# #?????# | | ?????????????????????????????????# ####### | | ?????????????????????????????????# + | | ?????????????????????????????????# ####### | | ?????????????????????????????????# #?????# | | ?????????????????????????????????# #?????# | | ??????????########################++####### | | ??????????# s | | ??????????# s | | ??????????# @ | | ??????????# < #####+####### ##### ####### | | ??????????????????# #?????# #???# #?????? | | ??????????????????# #?????" #???# "?????? | | ??????????????????# ?????" +???+ "?????? | | ??????????????????###?????" #???# "?????? | | ??????????????????????????# #???# #?????? | | ??????????????????????????# #???? #?????? | | ??????????????????????????# #???? #?????? | | ??????????????????????????# #???? #?????? | | ??????????????????????????# #???? #?????? | | ?????????????????????????? ????? ??????? | | ??????????????????????????# ????? ??????? | | ??????????????????????????? ????? ??????? | | ??????????????????????????????????????????? | | ??????????????????????????????????????????? | | ??????????????????????????????????????????? | | ??????????????????????????????????????????? | | ??????????????????????????????????????????? | | ??????????????????????????????????????????? | | ??????????????????????????????????????????? | | ??????????????????????????????????????????? | | ??????????????????????????????????????????? | | ??????????????????????????????????????????? | | ??????????????????????????????????????????? | +----------------------------------------------------+ Best States ------------- Heat Dissipation 62 Energy Generation 16 Energy Capacity 290 Matter Stores 300 Matter Capacity 300 Sight Range 16 Terrain Scan Density 10 Armor Coverage 450 Resistance: KI 30 Propulsion Shielding 33 Weapon Shielding 66 Evasion (%) 63 Targeting Accuracy 8 Recoil Reduction 2 Offensive Hacking 22 Defensive Hacking 10 Relay Coupler Types 3 Relay Coupler Value 63 Item Schematics ----------------- None Robot Schematics ------------------ L-41 Fighter | -7/Factory | Hacked Fabricated ------------ Nothing Alien Tech Used ----------------- None Achievements -------------- Packrat Challenges ------------ None Game ------ Seed FluxGravmagInterrupter Manual? 0 Play Time 00:54:32 Cumulative 360.6 hours Start 2022.12.20 @ 11:55:08 End 2022.12.21 @ 08:48:37 Sessions 5 Manual Loads 0 Difficulty Rogue Special Mode None Game No. 633 Rogue 478 Adventurer 148 Explorer 7 Win Type - Total 13 Types 11/0/1/1/0/0/0/0/0 Lore% 75 Gallery% 88 Achievement% 68 Wizard Run 0 Options --------- ASCII 0 Keyboard 0 Movement Numpad Keybinds 0 Fullscreen 2 Font 18/SmallcapsGlow Map View 76x50 Tactical HUD 1 Map Filters NONE Filters NONE Steam 1 RUN: e862706f-a036-431a-a778-90eac1b2eb39